[Event "13th KIIT Festival-A 2022"]
[Site "Bhubaneswar"]
[Date "2022.05.26"]
[Round "7.12"]
[White "Praloy Sahoo"]
[Black "Abdyjapar, Asyl"]
[Result "1-0"]
[ECO "B09"]
[WhiteElo "2065"]
[BlackElo "2346"]
[Annotator "TA"]
[PlyCount "93"]
[EventDate "2022.05.15"]
[EventType "swiss"]
[EventCountry "IND"]
[SourceTitle "playchess.com"]
[Source "ChessBase"]
[SourceQuality "1"]
[TimeControl "5400+30"]

{[%evp 10,93,35,0,55,0,0,0,29,-29,-30,-19,0,0,0,-6,-9,-2,7,-26,0,0,14,16,16,0,0,-150,-148,-137,-137,-145,-130,-130,-135,-140,-127,-145,-26,-44,-44,-44,-45,-38,-20,-24,0,0,58,56,75,51,54,45,43,43,117,77,169,165,189,174,177,178,229,214,223,255,335,332,315,322,377,325,650,649,626,616,815,839,862,858,823,657,612,582]} 1. e4 {[%emt 0:00:03]} d6 {[%emt 0:00:13]} 2. d4 {[%emt 0:00:26]} Nf6 {[%emt 0:00:05]} 3. Nc3 {[%emt 0:00:27]} g6 {[%emt 0:00:06]} 4. f4 {[%emt 0:01:23]} Bg7 {[%emt 0:00:10]} 5. Nf3 {[%emt 0:00:03]} O-O {[%emt 0:00:15]} 6. Be3 {[%emt 0:00:06]} a6 {[%emt 0:01:26] B09: Pirc Defence: Austrian Attack.} (6... b6 $11) 7. a4 {[%emt 0:05:51]} (7. e5 $14) 7... b6 $11 {[%emt 0:04:40]} 8. Bd3 {[%emt 0:02:11]} Bb7 {[%emt 0:00:44] The position is equal.} 9. d5 {[%emt 0:16:34]} (9. O-O $142) 9... c6 {[%emt 0:03:40][%cal Rc6d5] [#]} 10. O-O $146 {[%emt 0:01:25]} ({Predecessor:} 10. dxc6 Nxc6 11. O-O Rc8 12. h3 Nb4 13. Qe2 Nd7 14. Bd4 Bxd4+ 15. Nxd4 e5 16. Nb3 exf4 17. Rxf4 {0-1 (54) Padjen,Z (1975)-Matic,Z (2260) Zagreb 2018}) 10... Nbd7 {[%emt 0:04:36][%cal Rc6d5,Bb8d7,Bd7c5,Bc5d3][%mdl 32]} 11. dxc6 {[%emt 0:02:19]} Bxc6 {[%emt 0:01:38]} 12. Qe2 {[%emt 0:00:17]} Qc7 {[%emt 0:03:28]} 13. Bd4 {[%emt 0:12:15]} Nc5 {[%emt 0:03:58]} 14. Rfe1 {[%emt 0:08:33]} Nxd3 {[%emt 0:05:16]} 15. cxd3 {[%emt 0:00:05]} b5 {[%emt 0:01:32]} 16. axb5 {[%emt 0:00:42]} axb5 {[%emt 0:00:05]} 17. b4 {[%emt 0:00:17]} Qb7 {[%emt 0:01:43]} 18. Nd2 {[%emt 0:02:34] [#]} (18. Rac1 $11) 18... Nxe4 $1 $17 {[%emt 0:06:05][%mdl 512]} 19. Bxg7 {[%emt 0:15:10]} Qb6+ {[%emt 0:00:07]} 20. Kf1 {[%emt 0:04:16]} Nxd2+ {[%emt 0:00:22]} 21. Qxd2 {[%emt 0:00:02]} Rxa1 {[%emt 0:04:39]} 22. Rxa1 {[%emt 0:00:09]} Kxg7 {[%emt 0:00:05]} 23. Qf2 {[%emt 0:01:24] Against Qd4} Qxf2+ {[%emt 0:06:47]} (23... Qc7 $17 {[%cal Oc6g2] And now ...Bxg2+! would win.} 24. Kg1 Ra8) 24. Kxf2 {[%emt 0:00:02][%mdl 4096] Endgame KRB-KRN} Rc8 {[%emt 0:00:35][%cal Oc6g2]} 25. g3 {[%emt 0:00:05]} Be8 {[%emt 0:02:55]} 26. Ra3 {[%emt 0:02:50]} h5 {[%emt 0:00:06]} 27. Ke3 {[%emt 0:00:13]} e5 {[%emt 0:01:07]} 28. Ne4 {[%emt 0:01:50]} Rd8 {[%emt 0:02:32]} (28... exf4+ $11 29. Kxf4 Rc6) 29. Ra6 $1 $14 {[%emt 0:00:31]} d5 {[%emt 0:02:00]} 30. Nc5 {[%emt 0:00:25] White is more active.} d4+ {[%emt 0:00:29]} 31. Ke4 {[%emt 0:01:44]} exf4 {[%emt 0:02:10]} 32. Kxf4 {[%emt 0:01:24]} Kh6 {[%emt 0:02:40]} (32... Rd5 $14) 33. h4 {[%emt 0:02:04]} Kg7 {[%emt 0:00:21]} (33... Rd5 $16 {is a better defense.}) 34. Ke5 $18 {[%emt 0:01:15]} Bd7 {[%emt 0:01:00] [#]} 35. Rd6 $1 {[%emt 0:05:15]} Re8+ {[%emt 0:00:05]} 36. Kxd4 {[%emt 0:00:02]} Bf5 {[%emt 0:00:13] [#]} (36... Bg4 $142 37. Rb6 Re1) 37. Rb6 $1 {[%emt 0:00:27]} Re1 {[%emt 0:00:10]} 38. Rxb5 {[%emt 0:00:07]} Rg1 {[%emt 0:00:10]} 39. Ra5 {[%emt 0:00:22]} Rb1 {[%emt 0:02:37]} 40. b5 {[%emt 0:01:21][%cal Bb4b5,Bb5b6][%mdl 32]} Bg4 {[%emt 0:00:27]} 41. Ke5 {[%emt 0:02:52]} f6+ $2 {[%emt 0:00:16]} (41... g5 42. hxg5 Bf3) 42. Kd6 {[%emt 0:00:08] White is clearly winning.} g5 {[%emt 0:00:05]} 43. Kc7 {[%emt 0:00:17]} gxh4 {[%emt 0:00:20]} 44. gxh4 {[%emt 0:00:01]} f5 {[%emt 0:00:11]} 45. b6 {[%emt 0:01:07]} Bf3 {[%emt 0:00:06]} 46. Ne6+ {[%emt 0:00:17]} Kf6 {[%emt 0:00:08]} 47. Nd4 {[%emt 0:00:01][%csl LRf3,LRf5] What a bad dream for Black.  Weighted Error Value: White=0.18 (very precise) /Black=0.34} 1-0

[Event "13th KIIT Festival-A 2022"]
[Site "Bhubaneswar"]
[Date "2022.05.26"]
[Round "7.13"]
[White "Rohith Krishna S"]
[Black "Priyankara, Chamil"]
[Result "1-0"]
[ECO "E36"]
[WhiteElo "2337"]
[BlackElo "1938"]
[Annotator "TA"]
[PlyCount "65"]
[EventDate "2022.05.15"]
[EventType "swiss"]
[EventCountry "IND"]
[SourceTitle "playchess.com"]
[Source "ChessBase"]
[SourceQuality "1"]
[TimeControl "5400+30"]

{[%evp 12,65,22,10,0,-1,47,50,41,29,45,22,22,31,46,22,26,8,14,20,12,-8,-8,-13,-8,-8,-9,-6,0,-25,0,0,0,-10,-9,-10,0,0,0,0,0,0,0,0,0,0,0,0,16,0,888,803,818,752,1186,1152]} 1. d4 {[%emt 0:00:24]} Nf6 {[%emt 0:00:06]} 2. c4 {[%emt 0:00:03]} e6 {[%emt 0:03:50]} 3. Nc3 {[%emt 0:00:06]} Bb4 {[%emt 0:04:59]} 4. Qc2 {[%emt 0:00:12]} d5 {[%emt 0:07:16]} 5. a3 {[%emt 0:08:57]} Bxc3+ {[%emt 0:08:34]} 6. Qxc3 {[%emt 0:00:10]} O-O {[%emt 0:00:07]} 7. Nf3 {[%emt 0:00:15]} b6 {[%emt 0:01:53] E36: Nimzo-Indian: Classical: 4...d5 5 a3.} 8. Bg5 {[%emt 0:05:52]} c6 {[%emt 0:37:08]} (8... dxc4 $11 {might be stronger.} 9. e3 Nbd7) 9. e3 $14 {[%emt 0:00:20]} Bb7 {[%emt 0:00:39] [#] White is slightly better.} 10. cxd5 $146 {[%emt 0:10:26]} ({Predecessor:} 10. Bd3 Nbd7 11. O-O Rc8 12. cxd5 exd5 13. b4 h6 14. Bh4 Re8 15. Bf5 g5 16. Bg3 {1-0 (31) Gumularz,S (2062)-Pijewski,M (1530) Maslow Pierwszy 2014}) 10... cxd5 {[%emt 0:04:54]} 11. Bd3 {[%emt 0:00:53]} (11. Bxf6 $5 gxf6 12. Bb5 $11) 11... Nc6 {[%emt 0:00:44]} 12. O-O {[%emt 0:01:07]} Rc8 {[%emt 0:00:03][%cal Oc6e5]} 13. Qd2 {[%emt 0:00:14]} h6 {[%emt 0:02:20]} 14. Bh4 {[%emt 0:00:04]} g5 $1 {[%emt 0:01:44]} 15. Bg3 {[%emt 0:02:58]} Ne4 {[%emt 0:00:58]} 16. Bxe4 {[%emt 0:15:52]} dxe4 {[%emt 0:00:03]} 17. Ne5 {[%emt 0:00:05]} Nxe5 {[%emt 0:00:31]} 18. Bxe5 {[%emt 0:00:04]} f6 {[%emt 0:02:11]} 19. Bg3 {[%emt 0:00:05]} Qd7 {[%emt 0:00:35]} 20. Qb4 {[%emt 0:02:04]} Bd5 {[%emt 0:03:51]} 21. Rfc1 {[%emt 0:07:40]} Kf7 {[%emt 0:05:12]} 22. h4 {[%emt 0:00:45]} Rc6 {[%emt 0:00:48]} 23. a4 {[%emt 0:02:10][%cal Ba3a4,Ba4a5][%mdl 32]} Rfc8 {[%emt 0:00:23]} 24. Rxc6 {[%emt 0:00:12]} Rxc6 {[%emt 0:00:17]} 25. a5 {[%emt 0:00:31]} Rc4 {[%emt 0:00:42]} 26. Qe1 {[%emt 0:00:07]} b5 {[%emt 0:00:47]} 27. a6 {[%emt 0:00:15]} b4 {[%emt 0:01:40]} 28. Qd1 {[%emt 0:04:15]} Qb5 {[%emt 0:04:19]} 29. Bd6 {[%emt 0:00:51]} Rc6 {[%emt 0:03:22]} 30. Bc5 {[%emt 0:01:37] [#] Strongly threatening Qh5+.} b3 $2 {[%emt 0:01:29][%mdl 8192]} (30... Kg6 $11) 31. Qh5+ $18 {[%emt 0:00:15] White is clearly winning.} Kg7 {[%emt 0:00:17]} 32. Qe8 {[%emt 0:00:26] White threatens Bf8+ and mate.} e5 {[%emt 0:03:44]} 33. h5 {[%emt 0:05:03] Weighted Error Value: White=0.07 (flawless) /Black=0.09 (flawless)} 1-0

[Event "13th KIIT Festival-A 2022"]
[Site "Bhubaneswar"]
[Date "2022.05.26"]
[Round "7.14"]
[White "Shiva Pavan Teja Sharma U"]
[Black "Konguvel, Ponnuswamy"]
[Result "1-0"]
[ECO "B06"]
[WhiteElo "2064"]
[BlackElo "2331"]
[Annotator "TA"]
[PlyCount "91"]
[EventDate "2022.05.15"]
[EventType "swiss"]
[EventCountry "IND"]
[SourceTitle "playchess.com"]
[Source "ChessBase"]
[SourceQuality "1"]
[TimeControl "5400+30"]

{[%evp 11,91,33,30,16,24,10,13,9,30,15,22,29,12,20,11,21,32,0,0,-3,-22,-20,-23,-23,-23,-25,-18,-18,-12,-18,-16,-55,-52,-56,0,-75,-87,-95,-63,-62,-56,-114,-102,-89,-50,-51,-51,-40,-1,-16,-29,-15,-21,-13,-8,-122,225,208,231,235,241,213,380,355,352,352,387,385,774,594,865,773,1631,1585,1343,1068,29974,29975,29972,29975,29968,6388]} 1. e4 {[%emt 0:00:17] Gutman,L} c5 {[%emt 0:00:15]} 2. Nf3 {[%emt 0:00:10]} g6 {[%emt 0:01:18]} 3. c3 {[%emt 0:00:31]} d5 {[%emt 0:01:03]} 4. exd5 {[%emt 0:00:48]} Qxd5 {[%emt 0:00:11]} 5. d4 {[%emt 0:00:42]} Bg7 {[%emt 0:00:15]} 6. Na3 {[%emt 0:00:49]} cxd4 {[%emt 0:00:55]} 7. Nb5 {[%emt 0:00:32] aiming for Nc7+. B06: Modern Defence.} Na6 {[%emt 0:01:09] Inhibits Nc7+.} 8. Nbxd4 {[%emt 0:00:41] Active counter play!} Nf6 {[%emt 0:04:56]} 9. Bb5+ {[%emt 0:01:28] The position is equal.} Bd7 {[%emt 0:02:28]} 10. Bxa6 {[%emt 0:00:31]} bxa6 {[%emt 0:00:10]} 11. O-O {[%emt 0:00:06]} O-O {[%emt 0:00:56]} 12. Re1 {[%emt 0:00:47] Prevents e5.} Rfe8 {[%emt 0:06:27]} 13. Ne5 {[%emt 0:00:57]} Rab8 {[%emt 0:19:08] [#] Inhibits Qb3.} 14. c4 $146 {[%emt 0:17:11]} ({Predecessor:} 14. Qf3 Qxf3 15. Ndxf3 Rb7 16. Ng5 Rf8 17. Nd3 Bb5 18. Nc5 Rc7 19. Nb3 Nd5 20. Bd2 {1-0 (54) Karpatchev,A (2414)-Strunski,A (2362) Ditzingen 2012 CBM 149 [Gutman,L]}) 14... Qd6 {[%emt 0:10:55]} 15. h3 {[%emt 0:38:24]} Rbd8 {[%emt 0:20:35][%cal Od7h3]} 16. Ndf3 {[%emt 0:01:26] [#]} Bxh3 $1 {[%emt 0:06:50] This bishop pair is nice.} 17. Qxd6 {[%emt 0:05:42]} exd6 {[%emt 0:00:04]} 18. Nxf7 {[%emt 0:03:42]} Rxe1+ {[%emt 0:08:28]} 19. Nxe1 {[%emt 0:00:06]} Kxf7 {[%emt 0:00:25]} 20. gxh3 {[%emt 0:00:06]} Rc8 {[%emt 0:02:19]} 21. Be3 {[%emt 0:02:09]} Rxc4 {[%emt 0:00:08]} 22. Rd1 {[%emt 0:00:52] Prevents Nd5.} Ne4 {[%emt 0:05:10]} (22... Ke6 $15) 23. b3 {[%emt 0:03:02]} (23. f3 $11 {remains equal.}) 23... Rc7 $17 {[%emt 0:00:43]} 24. Kg2 {[%emt 0:00:44]} Be5 {[%emt 0:00:32]} 25. Nd3 {[%emt 0:03:44]} Ke6 {[%emt 0:00:24]} 26. f4 {[%emt 0:02:11]} (26. Re1 $15) 26... Bf6 {[%emt 0:01:14]} 27. Kf3 {[%emt 0:00:41]} d5 {[%emt 0:01:09]} 28. Nb4 {[%emt 0:01:04][%csl LRa6,LRd5]} Nc3 {[%emt 0:00:05]} 29. Nxa6 {[%emt 0:02:50]} Rc8 {[%emt 0:02:35]} (29... Nxd1 30. Nxc7+ Kd6 31. Nb5+ Kc6 32. Nxa7+ Kd7 33. Nb5 $16) 30. Rd2 {[%emt 0:00:46]} Ne4 {[%emt 0:00:36]} 31. Rd3 {[%emt 0:01:04]} Be7 {[%emt 0:01:01] Inhibits Nb4. Hoping for ...Rc6.} 32. b4 $1 {[%emt 0:01:29]} Rc2 {[%emt 0:00:54]} 33. a3 {[%emt 0:00:55] [#]} (33. a4 $11 {keeps the balance.}) 33... Rh2 $2 {[%emt 0:00:19][%mdl 8192] This costs Black the game.} (33... Bd6 $1 $17 {Strongly threatening ...Rh2.} 34. Bxa7 Rh2) 34. Nc7+ $18 {[%emt 0:00:22]} Kf7 {[%emt 0:03:01]} 35. Nxd5 {[%emt 0:00:13]} Nf6 {[%emt 0:00:34]} 36. Nxf6 {[%emt 0:00:55]} Bxf6 $2 {[%emt 0:00:21][%mdl 4096] Endgame KRB-KRB} (36... Kxf6 37. Kg3 (37. Bxa7 Rxh3+ 38. Ke4 Rxd3 $16) 37... Ra2 38. Bxa7 Kf5) 37. Rd7+ {[%emt 0:01:58]} Ke6 {[%emt 0:00:01]} 38. Rxa7 {[%emt 0:00:37]} ({Resist} 38. Rxh7 Kf5 39. a4 (39. Rxa7 Rxh3+ 40. Kf2 Ke4 $16) (39. Bxa7 Ra2 $16) 39... Rb2 $18) 38... Rxh3+ {[%emt 0:00:26]} 39. Ke4 {[%emt 0:00:12]} h5 $2 {[%emt 0:00:31]} (39... Be7 40. Ra6+ Kd7) 40. b5 {[%emt 0:00:33][%cal Bb4b5,Bb5b6,Bb6b7][%mdl 32]} Rh1 {[%emt 0:01:14]} 41. b6 {[%emt 0:00:43] Intending b7 and mate.} Rb1 {[%emt 0:00:02]} 42. b7 {[%emt 0:01:25] Ra6+ would kill now.} Be7 {[%emt 0:00:23]} 43. Ra6+ {[%emt 0:01:31]} Kd7 {[%emt 0:00:39]} 44. Rb6 {[%emt 0:00:42] White mates.} Rxb6 {[%emt 0:00:33]} 45. Bxb6 {[%emt 0:00:05]} Bd6 {[%emt 0:00:02]} 46. Ba7 {[%emt 0:00:09] Weighted Error Value: White=0.19 (very precise) /Black=0.46} 1-0

[Event "13th KIIT Festival-A 2022"]
[Site "Bhubaneswar"]
[Date "2022.05.26"]
[Round "7.16"]
[White "Sangma, Rahul"]
[Black "Anushka Gupta"]
[Result "1-0"]
[ECO "A14"]
[WhiteElo "2232"]
[BlackElo "1658"]
[Annotator "TA"]
[PlyCount "85"]
[EventDate "2022.05.15"]
[EventType "swiss"]
[EventCountry "IND"]
[SourceTitle "playchess.com"]
[Source "ChessBase"]
[SourceQuality "1"]
[TimeControl "5400+30"]

{[%evp 18,85,26,8,24,9,13,14,16,3,9,0,0,0,27,27,68,53,53,72,82,68,120,67,77,47,113,108,127,86,159,156,148,148,158,139,161,120,162,7,145,102,197,190,191,174,157,138,249,145,135,212,230,142,443,443,443,436,405,350,487,487,487,487,486,376,487,486,544,544]} 1. Nf3 {[%emt 0:03:11]} Nf6 {[%emt 0:00:32]} 2. c4 {[%emt 0:00:52]} e6 {[%emt 0:00:53]} 3. b3 {[%emt 0:03:43]} d5 {[%emt 0:01:16]} 4. Bb2 {[%emt 0:00:05]} Be7 {[%emt 0:00:41]} 5. g3 {[%emt 0:00:16]} b6 {[%emt 0:01:26]} 6. Bg2 {[%emt 0:00:12]} Bb7 {[%emt 0:00:07]} 7. O-O {[%emt 0:00:07]} O-O {[%emt 0:00:59]} 8. e3 {[%emt 0:00:12]} Nbd7 {[%emt 0:02:18]} 9. Qe2 {[%emt 0:02:15]} c5 {[%emt 0:01:20]} 10. Nc3 {[%emt 0:00:53] 10.Rd1 is not played anymore.} Re8 {[%emt 0:03:21] A14: English Opening: 1...e6 with b3 by White.} 11. Rfd1 {[%emt 0:04:58]} Rc8 {[%emt 0:05:12]} 12. Rac1 {[%emt 0:05:40]} Qc7 {[%emt 0:02:15] The position is equal.} 13. cxd5 {[%emt 0:15:54]} Nxd5 {[%emt 0:04:29]} 14. Nxd5 {[%emt 0:04:00]} Bxd5 {[%emt 0:01:53]} 15. e4 {[%emt 0:00:02]} Bc6 {[%emt 0:01:32]} 16. d4 {[%emt 0:05:35]} Qb7 {[%emt 0:12:00] [#]} 17. dxc5 $146 {[%emt 0:03:59]} ({Predecessor:} 17. Re1 Qa8 18. h4 a5 19. Ng5 h6 20. Nxf7 Kxf7 21. d5 exd5 22. exd5 Bf6 23. Qf3 {0-1 (50) Schupp,U (2128)-Lehmann,S (1990) Germany 2017}) 17... Bxc5 {[%emt 0:06:24]} 18. Nd4 {[%emt 0:01:58]} Bxd4 {[%emt 0:01:43]} 19. Rxd4 {[%emt 0:02:37]} Nc5 {[%emt 0:05:17] [#]} (19... a5 $14) 20. f3 {[%emt 0:01:50]} (20. b4 $1 $16 {[%cal Rb4c5]} e5 21. Rd6 (21. Rdc4 Ne6 $16)) 20... a5 {[%emt 0:07:29]} 21. Rcd1 {[%emt 0:02:55]} b5 {[%emt 0:05:25]} (21... f5 $14) 22. Rd6 $16 {[%emt 0:05:19]} b4 {[%emt 0:03:33]} 23. Qe3 {[%emt 0:03:06]} Bb5 {[%emt 0:03:36]} (23... Nd7 $142 24. Qg5 f6) 24. Qg5 {[%emt 0:03:23][%csl Gb2][%cal Rg5g7] [#]} e5 {[%emt 0:04:49][%cal Oc5d3]} 25. Bxe5 $40 {[%emt 0:06:19][%csl Ge5][%cal Rg5g7][%mdl 128] White wants a kill.} Ne6 {[%emt 0:00:33]} 26. Qe3 {[%emt 0:01:09] White is more active.} Rc6 {[%emt 0:02:37]} 27. Bh3 {[%emt 0:01:33]} h6 {[%emt 0:02:44]} 28. R6d2 $2 {[%emt 0:13:33]} ({White should try} 28. Bxe6 $18 {And now Rd7 would win.} Rxe6 29. Rd8+ Kh7 30. Rb8) 28... Rec8 {[%emt 0:06:51]} (28... Ng5 $11 {remains equal.} 29. Bf5 g6) 29. Bb2 {[%emt 0:01:55]} Qb6 {[%emt 0:02:39]} (29... Rc2 $16 30. Qf2 Rxd2 31. Rxd2 Rc7) 30. Qxb6 $18 {[%emt 0:00:52]} Rxb6 {[%emt 0:00:02]} 31. f4 {[%emt 0:00:15][%cal Bf3f4,Bf4f5][%mdl 32]} a4 {[%emt 0:01:43]} 32. f5 {[%emt 0:02:02]} Ng5 {[%emt 0:00:18]} (32... Nc5 $16 {is a better defense.}) 33. Rd8+ {[%emt 0:00:55]} (33. Bg2 $18) 33... Rxd8 $16 {[%emt 0:00:07]} 34. Rxd8+ {[%emt 0:00:01]} Kh7 {[%emt 0:00:10]} 35. Bg2 {[%emt 0:00:01]} Rc6 $2 {[%emt 0:01:30][%mdl 8192] This move loses the game for Black.} (35... a3 $16 {is more resistant.} 36. Be5 Rc6) 36. bxa4 $18 {[%emt 0:04:21]} Bxa4 {[%emt 0:00:29]} 37. h4 {[%emt 0:00:14]} Rc2 {[%emt 0:00:36]} 38. Be5 {[%emt 0:00:47]} ({Less strong is} 38. hxg5 Rxb2 39. e5 Rb1+ 40. Kh2 hxg5 $18) 38... Rxa2 {[%emt 0:01:29]} 39. hxg5 {[%emt 0:00:16]} hxg5 {[%emt 0:00:09]} 40. Rb8 {[%emt 0:01:38]} b3 {[%emt 0:00:11]} 41. Rb4 {[%emt 0:00:18]} f6 {[%emt 0:00:37]} 42. Bd4 {[%emt 0:00:20]} Kh6 {[%emt 0:00:25]} 43. g4 {[%emt 0:02:29] Weighted Error Value: White=0.27 (precise) /Black=0.53} 1-0